bitfinex/quotes_BTCUSD_20220205
["timestamp","ask_amount","ask_price","bid_price","bid_amount"]
[1644066640309,0.1,41447.0,41438.0,0.05]
[1644066640511,0.02088393,41449.0,41446.0,0.05612071]
[1644066640710,0.02088393,41449.0,41447.0,0.3]
[1644066641108,0.02088393,41449.0,41448.0,0.0481]
[1644066641308,0.28901653,41449.0,41448.0,0.0481]
[1644066641508,0.6003426,41449.0,41448.0,0.0481]
[1644066641711,0.2681326,41449.0,41446.0,0.00612071]
[1644066642158,0.00024895,41452.0,41446.0,0.00612071]
[1644066642553,0.3,41460.0,41447.0,0.05]
[1644066642858,0.24748517,41459.0,41450.0,0.26013722]
[1644066643052,0.06693541,41458.0,41450.0,0.26013722]
[1644066643253,0.06693541,41458.0,41449.0,0.030158]
[1644066643254,0.21427519,41452.0,41449.0,0.030158]
[1644066643653,0.21427519,41452.0,41447.0,0.110318]
[1644066643853,0.21402624,41452.0,41447.0,0.110318]
[1644066644254,0.21402624,41452.0,41448.0,0.21357459]
[1644066644457,0.21402624,41452.0,41448.0,0.21430205]
[1644066645056,0.21402624,41452.0,41448.0,0.24373259]
[1644066645255,0.21402624,41452.0,41448.0,0.24446005]
[1644066645460,0.21475362,41452.0,41448.0,0.24446005]
[1644066646304,0.21402624,41452.0,41448.0,0.24373259]
[1644066646504,0.21472988,41452.0,41448.0,0.24443631]
[1644066646704,0.00070364,41452.0,41448.0,0.24443631]
[1644066646905,0.00070364,41452.0,41449.0,0.060307]
[1644066647106,0.00070364,41452.0,41449.0,0.12061141]
[1644066647308,0.00070364,41452.0,41450.0,0.060306]
[1644066647605,0.0003425,41462.0,41451.0,0.030153]
[1644066647806,0.00070395,41453.0,41451.0,0.030153]
[1644066648607,0.00070395,41453.0,41452.0,0.060307]
[1644066648807,0.24353019,41456.0,41452.0,0.120614]
[1644066649007,0.00070341,41454.0,41452.0,0.045614]
[1644066649862,0.24353019,41456.0,41452.0,0.105921]
[1644066650263,0.0007034,41455.0,41452.0,0.105921]
[1644066651163,0.08921359,41463.0,41452.0,0.105921]
[1644066651367,0.30355852,41463.0,41455.0,0.15073971]
[1644066651563,0.00070339,41456.0,41455.0,0.15073971]
[1644066651764,0.00070339,41456.0,41455.0,0.19883971]
[1644066652162,0.00070339,41456.0,41455.0,0.40437612]
[1644066652364,0.0003425,41464.0,41455.0,0.40437612]
[1644066652563,0.0003425,41464.0,41459.0,0.06029]
[1644066652564,0.00281304,41464.0,41459.0,0.06029]
[1644066652767,0.00315554,41464.0,41459.0,0.18087038]
[1644066652962,0.00315554,41464.0,41459.0,0.12058038]
[1644066653164,0.00315554,41464.0,41463.0,0.24713832]
[1644066653410,0.00281304,41464.0,41463.0,0.29713832]
[1644066653706,0.001,41465.0,41463.0,0.30743032]
[1644066654107,0.001,41465.0,41459.0,0.05]
[1644066654308,0.0013425,41465.0,41457.0,0.0481]
[1644066654509,0.0013425,41465.0,41458.0,0.05]
[1644066655107,0.07764286,41464.0,41460.0,0.23377474]
[1644066655308,0.0007033,41463.0,41460.0,0.23377474]
[1644066655508,0.0007033,41463.0,41462.0,0.05]
[1644066655709,0.0007033,41463.0,41462.0,0.42182935]
[1644066656113,0.001,41465.0,41462.0,0.42182935]
[1644066656407,0.001,41465.0,41464.0,0.03445364]
[1644066656607,0.00165695,41465.0,41464.0,0.40565324]
[1644066657262,0.001,41465.0,41464.0,0.40565324]
[1644066657561,0.001,41465.0,41464.0,0.46592726]
[1644066657759,0.00199943,41467.0,41464.0,0.46592726]
[1644066657960,0.00165693,41467.0,41466.0,0.05]
[1644066658161,0.00165693,41467.0,41466.0,0.34371921]
[1644066658460,0.001,41467.0,41466.0,0.34371921]
[1644066658859,0.001,41467.0,41466.0,0.05]
[1644066659261,0.001,41467.0,41462.0,0.3209462]
[1644066659461,0.26226364,41465.0,41462.0,0.29363468]
[1644066659860,0.0003425,41466.0,41464.0,0.05]
[1644066660063,0.001,41467.0,41464.0,0.080143]
[1644066660064,0.00208595,41467.0,41464.0,0.080143]
[1644066660262,0.00208595,41467.0,41464.0,0.128243]
[1644066660263,0.00174345,41467.0,41464.0,0.128243]
[1644066660664,0.002,41468.0,41464.0,0.128243]
[1644066660665,3.45e-06,41468.0,41465.0,0.7]
[1644066660914,3.45e-06,41468.0,41467.0,0.91374486]
[1644066661112,3.45e-06,41468.0,41467.0,1.31184486]
[1644066661321,3.45e-06,41468.0,41467.0,1.46184486]
[1644066661515,0.00074689,41468.0,41467.0,1.16184486]
[1644066662212,3.45e-06,41468.0,41467.0,1.49395179]
[1644066662413,3.45e-06,41468.0,41467.0,0.759171]
[1644066662614,3.45e-06,41468.0,41467.0,0.0981]
[1644066665061,3.45e-06,41468.0,41467.0,0.05]
[1644066667662,3.45e-06,41468.0,41466.0,0.0331]
[1644066667862,0.07832093,41467.0,41466.0,0.0331]
[1644066668063,3.45e-06,41468.0,41466.0,0.0331]
[1644066669311,0.0732082,41471.0,41466.0,0.0331]
[1644066669511,0.00034255,41469.0,41466.0,0.0331]
[1644066669712,0.07355075,41471.0,41466.0,0.0331]
[1644066670014,0.00034255,41470.0,41466.0,0.0331]
[1644066670212,0.07355075,41471.0,41466.0,0.0331]
[1644066670410,0.00034255,41470.0,41466.0,0.0331]
[1644066670612,0.07355075,41471.0,41466.0,0.0331]
[1644066670812,0.00034255,41470.0,41466.0,0.0331]
[1644066671013,0.00234255,41471.0,41466.0,0.23573685]
[1644066671212,0.00034255,41470.0,41468.0,0.05]
[1644066671413,0.00234255,41471.0,41468.0,0.05]
[1644066671618,0.002,41471.0,41468.0,0.05]
[1644066673058,0.002,41471.0,41468.0,0.080138]
[1644066673259,0.002,41471.0,41468.0,0.14041099]
[1644066675160,0.002,41471.0,41468.0,0.080138]
[1644066675361,0.002,41471.0,41468.0,0.05]
[1644066677714,0.002,41471.0,41468.0,0.26387525]
[1644066678616,0.25124696,41471.0,41468.0,0.05]
[1644066678814,0.25124696,41471.0,41466.0,0.00072269]
[1644066679018,0.25158951,41471.0,41466.0,0.00072269]
[1644066679214,0.25158951,41471.0,41461.0,0.05]
[1644066679419,0.19680527,41470.0,41466.0,0.00072269]
[1644066679676,0.19714782,41470.0,41466.0,0.00072269]
[1644066679868,0.00034255,41470.0,41466.0,0.00072269]
[1644066680067,0.25158951,41471.0,41466.0,0.00072269]
[1644066680267,0.00034255,41470.0,41466.0,0.00072269]
[1644066680467,0.25158951,41471.0,41461.0,0.05]
[1644066680668,0.00034255,41470.0,41466.0,0.00072268]
[1644066680968,0.49932667,41471.0,41466.0,0.00072268]
[1644066681169,0.00034255,41470.0,41466.0,0.00072268]
[1644066681369,0.49898412,41471.0,41466.0,0.00072268]
[1644066681370,0.49932667,41471.0,41466.0,0.00072268]
[1644066681568,0.00034255,41470.0,41464.0,0.05]
[1644066681771,0.49860408,41471.0,41466.0,0.00074611]
[1644066681974,0.00034255,41470.0,41466.0,0.00074611]
[1644066682271,0.24733553,41471.0,41466.0,0.00074611]
[1644066682769,0.24658951,41471.0,41464.0,0.05]
[1644066682969,0.24658951,41471.0,41466.0,0.00074611]
[1644066683170,0.24733553,41471.0,41466.0,0.00074611]
[1644066683410,0.26654371,41471.0,41466.0,0.00074611]
[1644066684010,0.26579769,41471.0,41464.0,0.05]
[1644066684213,0.26650088,41471.0,41466.0,0.00070328]
[1644066685214,0.26579769,41471.0,41464.0,0.05]
[1644066685413,0.28817252,41471.0,41466.0,0.00070328]
[1644066685612,0.26896434,41471.0,41466.0,0.00070328]
[1644066686414,0.26896434,41471.0,41464.0,0.05]
[1644066686415,0.26826115,41471.0,41464.0,0.05]
[1644066686614,0.26896434,41471.0,41466.0,0.00070328]
[1644066687460,0.28796311,41471.0,41466.0,0.00070328]
[1644066687662,0.26558828,41471.0,41464.0,0.060285]
[1644066687860,0.26629147,41471.0,41466.0,0.00070328]
[1644066688864,0.01899877,41471.0,41467.0,0.27674537]
[1644066689065,0.01899877,41471.0,41469.0,0.05]
[1644066689264,0.01970623,41471.0,41469.0,0.05]
[1644066689461,0.04102929,41471.0,41469.0,0.05]
[1644066689666,0.02203052,41471.0,41469.0,0.05]
[1644066689961,0.02132306,41471.0,41469.0,0.05]
[1644066691311,0.02132306,41471.0,41468.0,0.27710982]
[1644066691711,0.00270745,41472.0,41467.0,0.24660537]
[1644066692511,0.002,41472.0,41467.0,0.24660537]
[1644066692711,0.00270703,41472.0,41467.0,0.24660537]
[1644066693111,0.00270703,41472.0,41466.0,0.12125912]
[1644066693712,0.002,41472.0,41466.0,0.120552]
[1644066693913,0.00070703,41471.0,41467.0,0.090419]
[1644066694213,0.00070703,41471.0,41470.0,0.26574835]
[1644066694965,0.002,41472.0,41470.0,0.26574835]
[1644066695162,0.002,41472.0,41466.0,0.12125913]
[1644066695362,0.002,41472.0,41466.0,0.18154013]
[1644066695962,0.002,41472.0,41466.0,0.180833]
[1644066696164,0.002,41472.0,41470.0,0.20437691]
[1644066696465,0.00070706,41471.0,41470.0,0.26464691]
[1644066696666,0.00070706,41471.0,41470.0,0.96828823]
[1644066696866,0.00070706,41471.0,41470.0,1.06828823]
[1644066697067,0.00070706,41471.0,41470.0,0.86154361]
[1644066697266,0.002,41472.0,41470.0,0.86154361]
[1644066697470,0.002,41472.0,41471.0,0.52678451]
[1644066697666,0.002,41472.0,41471.0,0.57488451]
[1644066699310,0.37992759,41481.0,41471.0,0.57488451]
[1644066699311,0.34768972,41482.0,41473.0,0.030132]
[1644066699510,0.34768972,41482.0,41475.0,0.120528]
[1644066699511,0.0194737,41477.0,41475.0,0.120528]
[1644066699709,0.0194737,41477.0,41475.0,0.060264]
[1644066699912,0.0194737,41477.0,41476.0,0.27424462]
[1644066700313,0.0194737,41477.0,41476.0,0.32234462]
[1644066700513,0.0194737,41477.0,41476.0,0.44286862]
[1644066700715,0.0144737,41477.0,41476.0,0.44286862]
[1644066701213,0.0144737,41477.0,41476.0,0.54286862]
[1644066701416,0.02,41489.0,41478.0,0.060242]
[1644066701613,0.02,41489.0,41483.0,0.05]
[1644066702663,0.02,41489.0,41482.0,0.090364]
[1644066703557,0.00074565,41485.0,41482.0,0.090364]
[1644066704059,0.00074565,41485.0,41483.0,0.05]
[1644066704259,0.00074565,41485.0,41483.0,0.28911859]
[1644066704661,0.02,41489.0,41483.0,0.28911859]
[1644066705058,0.00074565,41486.0,41483.0,0.28911859]
[1644066705263,0.00074565,41486.0,41482.0,0.090364]
[1644066705910,0.24604516,41488.0,41483.0,0.05]
[1644066706110,0.00074565,41485.0,41483.0,0.05]
[1644066706310,0.00074565,41485.0,41483.0,0.53712477]
[1644066706911,0.04171624,41489.0,41483.0,0.53712477]
[1644066707314,0.0007453,41486.0,41483.0,0.53712477]
[1644066708211,0.03982562,41489.0,41483.0,0.53712477]
[1644066708410,0.00072839,41486.0,41483.0,0.53712477]
[1644066708611,0.00072839,41486.0,41483.0,0.48712477]
[1644066709320,0.00072839,41486.0,41477.0,0.37391514]
[1644066709321,0.33221,41482.0,41477.0,0.37391514]
[1644066709669,0.33221,41482.0,41469.0,0.19317613]
[1644066709670,0.06703121,41473.0,41469.0,0.19317613]
[1644066709863,0.0481,41476.0,41469.0,0.19317613]
[1644066710061,0.0481,41476.0,41464.0,0.72077924]
[1644066710062,0.0481,41476.0,41464.0,0.22077924]
[1644066710862,0.0481,41476.0,41462.0,0.20676448]
[1644066711061,0.0481,41476.0,41460.0,0.05]
[1644066711062,0.07459371,41475.0,41461.0,0.20676448]
[1644066711264,0.06028797,41474.0,41470.0,0.00072915]
[1644066711463,0.53557324,41473.0,41470.0,0.00072915]
[1644066711662,0.48352278,41472.0,41470.0,0.00072915]
[1644066711862,0.08950488,41467.0,41461.0,0.20676448]
[1644066712063,0.08950488,41467.0,41459.0,0.20676448]
[1644066712265,0.31954563,41471.0,41459.0,0.20676448]
[1644066712566,0.31954563,41471.0,41459.0,0.25676448]
[1644066712762,0.31954563,41471.0,41459.0,0.20676448]
[1644066713411,0.31954563,41471.0,41463.0,0.0007059]
[1644066713612,0.08662512,41470.0,41464.0,0.27777469]
[1644066714612,0.08662512,41470.0,41465.0,0.00066004]
[1644066715012,0.31954563,41471.0,41465.0,0.00066004]
[1644066715612,0.31954563,41471.0,41466.0,0.19907672]
[1644066715816,0.33221,41470.0,41466.0,0.199777]
[1644066716013,0.33221,41470.0,41466.0,0.00070028]
[1644066716811,0.07245471,41468.0,41459.0,0.35748248]
[1644066717169,0.27681975,41469.0,41466.0,0.00070028]
[1644066717562,0.33221,41470.0,41466.0,0.00070028]
[1644066717763,0.26895821,41469.0,41466.0,0.00070028]
[1644066717964,0.34279328,41472.0,41459.0,0.25676448]
[1644066718163,0.34279328,41472.0,41466.0,0.00070148]
[1644066718368,0.07812886,41469.0,41466.0,0.00070148]
[1644066719165,0.07812886,41469.0,41463.0,0.22534967]
[1644066719365,0.07812886,41469.0,41465.0,0.00070148]
[1644066720365,0.07812886,41469.0,41459.0,0.030146]
[1644066720568,0.2658635,41468.0,41465.0,0.00070149]
[1644066720764,0.2682,41468.0,41465.0,0.00070149]
[1644066721609,0.2682,41468.0,41461.0,0.25841342]
[1644066721809,0.2682,41468.0,41464.0,0.00070149]
[1644066722810,0.2682,41468.0,41461.0,0.25841342]
[1644066723011,0.2682,41468.0,41464.0,0.0007014]
[1644066724011,0.2682,41468.0,41461.0,0.25841342]
[1644066724212,0.2682,41468.0,41464.0,0.0007014]
[1644066724667,0.30597928,41471.0,41464.0,0.0007014]
[1644066725264,0.30597928,41471.0,41461.0,0.25841342]
[1644066725464,0.33221,41470.0,41465.0,0.00070138]
[1644066725665,0.30687772,41476.0,41465.0,0.03084338]
[1644066725866,0.40687772,41476.0,41465.0,0.03084338]
[1644066726064,0.30687772,41476.0,41465.0,0.03084338]
[1644066726270,0.02012503,41477.0,41465.0,0.03084338]
[1644066726466,0.02012503,41477.0,41470.0,0.22464692]
[1644066726467,0.33221,41476.0,41470.0,0.22464692]
[1644066726664,0.33221,41476.0,41470.0,0.28492592]
[1644066727466,0.02012503,41477.0,41470.0,0.060279]
[1644066727666,0.33221,41476.0,41462.0,0.1197]
[1644066727866,0.27468152,41475.0,41471.0,0.00070135]
[1644066728067,0.33221,41474.0,41471.0,0.00070135]
[1644066728268,0.02012503,41477.0,41471.0,0.00070135]
[1644066728269,0.33221,41472.0,41471.0,0.00070135]
[1644066728513,0.79655414,41472.0,41471.0,0.00070135]
[1644066728816,0.52155557,41472.0,41471.0,0.00070135]
[1644066729010,0.18934557,41472.0,41464.0,0.26913631]
[1644066729211,0.49462074,41480.0,41474.0,0.27304195]
[1644066729412,0.33274492,41475.0,41474.0,0.27304195]
[1644066729611,0.95026233,41475.0,41474.0,0.27304195]
[1644066731715,0.86716799,41475.0,41474.0,0.27304195]
[1644066732762,0.58186058,41475.0,41474.0,0.27304195]
[1644066733361,0.33221,41475.0,41474.0,0.27304195]
[1644066734965,0.41758392,41475.0,41474.0,0.27304195]
[1644066735167,0.80746576,41475.0,41474.0,0.27304195]
[1644066736813,0.51758392,41475.0,41474.0,0.27304195]
[1644066737617,0.41758392,41475.0,41474.0,0.27304195]
[1644066738217,0.33221,41475.0,41474.0,0.27304195]
[1644066740962,0.60624928,41475.0,41474.0,0.27304195]
[1644066741163,0.70624928,41475.0,41474.0,0.27304195]
[1644066741363,0.43221,41475.0,41474.0,0.27304195]
[1644066741564,0.70757368,41475.0,41474.0,0.27304195]
[1644066742165,0.33221,41475.0,41474.0,0.27304195]
[1644066746820,0.34629787,41479.0,41474.0,0.27304195]
[1644066747017,0.33221,41478.0,41474.0,0.27304195]
[1644066748462,0.59556274,41478.0,41474.0,0.27374326]
[1644066749368,0.59556274,41478.0,41474.0,0.27304195]
[1644066749563,0.59556274,41478.0,41474.0,0.27374326]
[1644066750662,0.59556274,41478.0,41474.0,0.27304195]
[1644066750912,0.59556274,41478.0,41474.0,0.27374326]
[1644066751813,0.59556274,41478.0,41474.0,0.27304195]
[1644066752017,0.59556274,41478.0,41474.0,0.27374326]
[1644066753113,0.59556274,41478.0,41474.0,0.27304195]
[1644066753316,0.59556274,41478.0,41474.0,0.27374326]
[1644066754217,0.59556274,41478.0,41474.0,0.27304195]
[1644066754416,0.59556274,41478.0,41474.0,0.27374326]
[1644066755467,0.59556274,41478.0,41474.0,0.27304195]
[1644066755668,0.59556274,41478.0,41474.0,0.27374326]
[1644066756670,0.59556274,41478.0,41474.0,0.27304195]
[1644066756869,0.59556274,41478.0,41474.0,0.27374326]
[1644066757672,0.69556274,41478.0,41474.0,0.27374326]
[1644066757872,0.79556274,41478.0,41474.0,0.27304195]
[1644066758072,0.33221,41476.0,41474.0,0.27374326]
[1644066758274,0.43221,41476.0,41474.0,0.27374326]
[1644066759113,0.5948848,41475.0,41474.0,0.27304195]
[1644066759316,0.04282925,41475.0,41474.0,0.27304195]
[1644066769317,0.04282925,41475.0,41474.0,0.26964295]
[1644066772266,0.30091605,41475.0,41474.0,0.26964295]
[1644066786067,0.2580868,41478.0,41474.0,0.60503027]
[1644066786266,0.0788452,41479.0,41474.0,0.60503027]
[1644066786267,0.33665845,41479.0,41474.0,0.60503027]
[1644066786467,0.2580868,41480.0,41477.0,0.29087563]
[1644066786867,0.2580868,41480.0,41478.0,0.24980931]
[1644066787467,0.2580868,41481.0,41477.0,0.29087563]
[1644066787668,0.2580868,41480.0,41477.0,0.29087563]
[1644066787870,0.2580868,41481.0,41477.0,0.29087563]
[1644066788272,0.2580868,41481.0,41477.0,0.29153692]
[1644066788515,0.2580868,41481.0,41478.0,0.26904131]
[1644066788816,0.57197995,41482.0,41478.0,0.26904131]
[1644066789419,0.2580868,41480.0,41478.0,0.26970259]
[1644066789716,0.332206,41479.0,41478.0,0.00066128]
[1644066790318,0.332206,41479.0,41475.0,0.27338145]
[1644066790319,0.57197995,41482.0,41475.0,0.27338145]
[1644066790517,0.640292,41482.0,41477.0,0.24239043]
[1644066791720,0.640292,41482.0,41477.0,0.24307091]
[1644066792866,0.3822052,41482.0,41477.0,0.24239043]
[1644066793165,0.3822052,41482.0,41477.0,0.24307091]
[1644066794065,0.3822052,41482.0,41477.0,0.24239043]
[1644066794266,0.2580868,41481.0,41477.0,0.24307091]
[1644066794467,0.540292,41482.0,41477.0,0.24307091]
[1644066794667,0.3322,41481.0,41477.0,0.24307091]
[1644066795365,0.3322,41481.0,41477.0,0.24306644]
[1644066795765,0.3580868,41482.0,41477.0,0.24306644]
[1644066796018,0.2580868,41482.0,41477.0,0.00067601]
[1644066796223,0.5902868,41481.0,41477.0,0.00067601]
[1644066796418,0.5902868,41481.0,41474.0,0.31964295]
[1644066796618,0.2580868,41481.0,41474.0,0.31964295]
[1644066796920,0.22833051,41480.0,41477.0,0.00067601]
[1644066797120,0.538584,41479.0,41477.0,0.00067601]
[1644066797621,0.538584,41479.0,41474.0,0.31964295]
[1644066797823,0.538584,41479.0,41476.0,0.00067602]
[1644066798825,0.538584,41479.0,41475.0,0.21052133]
[1644066799021,0.206384,41479.0,41475.0,0.2112225]
[1644066799221,0.31836832,41481.0,41475.0,0.2112225]
[1644066799966,0.31836832,41481.0,41475.0,0.21052133]
[1644066800164,0.31836832,41481.0,41476.0,0.00070116]
[1644066800365,0.3322,41480.0,41476.0,0.00070116]
[1644066800565,0.06827022,41479.0,41476.0,0.00070116]
[1644066800764,0.12855356,41479.0,41476.0,0.00070116]
[1644066801266,0.3322,41478.0,41474.0,0.31964295]
[1644066801468,0.12855356,41479.0,41475.0,0.00070117]
[1644066801664,0.2580868,41481.0,41475.0,0.30070117]
[1644066801869,0.35878784,41483.0,41475.0,0.30070117]
[1644066802166,0.20636561,41481.0,41475.0,0.30070117]
[1644066802364,0.20636561,41481.0,41475.0,0.00070117]
[1644066802564,0.20636561,41481.0,41474.0,0.31964295]
[1644066802765,0.20636561,41481.0,41478.0,0.2721533]
[1644066802965,0.20636561,41482.0,41478.0,0.2721533]
[1644066804215,0.15,41483.0,41478.0,0.2721533]
[1644066804216,0.20636561,41481.0,41478.0,0.2721533]
[1644066806216,0.20636561,41482.0,41478.0,0.2721533]
[1644066806817,0.35711426,41483.0,41478.0,0.2721533]
[1644066807017,0.20636561,41482.0,41478.0,0.2721533]
[1644066807269,0.20636561,41481.0,41478.0,0.2721533]
[1644066807468,0.20636561,41482.0,41478.0,0.27290205]
[1644066808071,0.21687073,41479.0,41478.0,0.27290205]
[1644066808468,0.21687073,41479.0,41478.0,0.00074875]
[1644066808668,0.21687073,41479.0,41474.0,0.74792167]
[1644066808871,0.21687073,41479.0,41476.0,0.00074876]
[1644066809768,0.21687073,41479.0,41475.0,0.26715272]
[1644066809969,0.21687073,41479.0,41475.0,0.26785253]
[1644066810572,0.20636561,41481.0,41476.0,0.06027]
[1644066810918,0.00138186,41482.0,41477.0,0.26982071]
[1644066811117,0.10138186,41482.0,41477.0,0.26982071]
[1644066812318,0.00138186,41482.0,41477.0,0.3903505]
[1644066812520,0.00138186,41482.0,41479.0,0.030133]
[1644066812719,0.00138186,41482.0,41480.0,0.28930501]
[1644066813019,0.00138186,41482.0,41479.0,0.030133]
[1644066813218,0.1006997,41483.0,41479.0,0.030133]
[1644066813418,0.1,41483.0,41479.0,0.030133]
[1644066813618,0.40874223,41484.0,41479.0,0.030133]
[1644066813919,0.00070301,41483.0,41479.0,0.030133]
[1644066814322,0.00070301,41483.0,41479.0,0.090397]
[1644066814518,0.00070301,41483.0,41480.0,0.090397]
[1644066814778,0.45874223,41484.0,41480.0,0.273]
[1644066815077,0.00070301,41483.0,41479.0,0.00070308]
[1644066815477,0.00070301,41483.0,41479.0,0.03083708]
[1644066815677,0.00070301,41483.0,41480.0,0.27504366]
[1644066815877,0.15237662,41484.0,41480.0,0.27504366]
[1644066816077,0.00070301,41483.0,41480.0,0.27504366]
[1644066817078,0.35313374,41484.0,41480.0,0.27504366]
[1644066817278,0.3322,41483.0,41479.0,0.00070327]
[1644066817777,0.4322,41483.0,41479.0,0.00070327]
[1644066818180,0.43322182,41483.0,41477.0,0.05]
[1644066818420,0.43322182,41483.0,41479.0,0.00070327]
[1644066818622,0.43392502,41483.0,41479.0,0.00070327]
[1644066819424,0.43322182,41483.0,41477.0,0.140405]
[1644066819620,0.43322182,41483.0,41479.0,0.00070327]
[1644066819621,0.43392502,41483.0,41479.0,0.00070327]
[1644066820420,0.43392502,41483.0,41477.0,0.00771258]
[1644066820620,0.43322182,41483.0,41477.0,0.00771258]
[1644066820821,0.04228742,41480.0,41477.0,0.00771258]
[1644066821320,0.04228742,41480.0,41477.0,0.06798158]
[1644066822023,0.0002845,41482.0,41477.0,0.06798158]
[1644066823071,0.17235641,41483.0,41477.0,0.00771258]
[1644066823272,0.0002845,41482.0,41478.0,0.060267]
[1644066823473,0.04228742,41481.0,41478.0,0.060267]
[1644066824072,0.0002845,41482.0,41478.0,0.060267]
[1644066824274,0.05166033,41483.0,41478.0,0.120532]
[1644066824473,0.00074877,41482.0,41478.0,0.120532]
[1644066825272,0.00074877,41482.0,41478.0,0.1807961]
[1644066825474,0.04228742,41481.0,41479.0,0.030133]
[1644066825672,0.00074877,41482.0,41480.0,0.060265]
[1644066825922,0.00074877,41482.0,41480.0,0.33423212]
[1644066826622,0.00166033,41483.0,41481.0,0.30372661]
[1644066827021,0.00240909,41483.0,41482.0,0.27062251]
[1644066827922,0.00166033,41483.0,41482.0,0.27062251]
[1644066828524,0.151,41484.0,41482.0,0.27062251]
[1644066828724,0.04228742,41483.0,41481.0,0.030132]
[1644066829123,0.151,41484.0,41481.0,0.030132]
[1644066829124,0.04228742,41482.0,41481.0,0.030132]
[1644066830581,0.05,41483.0,41481.0,0.030132]
[1644066830781,0.25174876,41484.0,41481.0,0.030132]
[1644066830983,0.25174876,41484.0,41482.0,0.060262]
[1644066831184,0.25174876,41484.0,41483.0,0.3]
[1644066831384,0.19403618,41484.0,41483.0,0.3481]
[1644066831581,0.19328742,41484.0,41483.0,0.0481]
[1644066831981,0.151,41484.0,41483.0,0.0481]
[1644066832687,0.151,41484.0,41478.0,0.20676448]
[1644066832884,0.151,41484.0,41477.0,0.00846147]
[1644066832885,0.151,41484.0,41477.0,0.00771258]
[1644066833284,0.21872882,41481.0,41477.0,0.21522595]
[1644066833521,0.26101624,41481.0,41477.0,0.21522595]
[1644066833722,0.21872882,41481.0,41477.0,0.21522595]
[1644066833921,0.21872882,41481.0,41477.0,0.21447706]
[1644066834124,0.26101624,41481.0,41477.0,0.21518313]
[1644066835123,0.21872882,41481.0,41477.0,0.21447706]
[1644066835424,0.21872882,41481.0,41477.0,0.21518313]
[1644066835626,0.26101624,41481.0,41478.0,0.20676448]
[1644066835829,0.26101624,41481.0,41477.0,0.00841865]
[1644066835830,0.26101624,41481.0,41477.0,0.21518313]
[1644066836027,0.21872882,41481.0,41477.0,0.21518313]
[1644066836527,0.26101624,41481.0,41477.0,0.00841865]
[1644066836727,0.21872882,41481.0,41477.0,0.00841865]
[1644066836927,0.26101624,41481.0,41477.0,0.00070607]
[1644066837575,0.26101624,41481.0,41476.0,0.00771258]
[1644066837771,0.26101624,41481.0,41474.0,0.49103774]
[1644066837971,0.42509443,41481.0,41476.0,0.00771258]
[1644066838171,0.42509443,41481.0,41477.0,0.00070951]
[1644066838172,0.3322,41480.0,41477.0,0.00070951]
[1644066838771,0.3322,41480.0,41476.0,0.00771258]
[1644066838973,0.27526843,41479.0,41476.0,0.00771258]
[1644066839173,0.27526843,41479.0,41476.0,0.0084221]
[1644066839973,0.27526843,41479.0,41476.0,0.00771258]
[1644066840179,0.27526843,41479.0,41474.0,0.26964295]
[1644066840919,0.27526843,41479.0,41476.0,0.00771258]
[1644066841921,0.27526843,41479.0,41474.0,0.27735553]
[1644066843123,0.27526843,41479.0,41474.0,0.26964295]
[1644066843124,0.04228742,41475.0,41474.0,0.26964295]
[1644066843324,0.09038742,41475.0,41474.0,0.26957014]
[1644066843522,0.67895303,41475.0,41474.0,0.26957014]
[1644066843722,0.72895303,41475.0,41474.0,0.26957014]
[1644066843922,0.82895303,41475.0,41474.0,0.26957014]
[1644066844122,0.62258742,41475.0,41474.0,0.26957014]
[1644066844524,0.82900761,41475.0,41474.0,0.26957014]
[1644066845380,1.114134,41475.0,41474.0,0.26957014]
[1644066846776,0.90771381,41475.0,41474.0,0.26957014]
[1644066848628,0.70771381,41475.0,41474.0,0.26957014]
[1644066848828,0.85771381,41475.0,41474.0,0.26957014]
[1644066851332,0.80961381,41475.0,41474.0,0.26957014]
[1644066853078,0.76732639,41475.0,41474.0,0.26957014]
[1644066853277,0.71732639,41475.0,41474.0,0.26957014]
[1644066853775,0.4322,41475.0,41474.0,0.26957014]
[1644066853973,0.69850248,41475.0,41474.0,0.26957014]
[1644066854175,0.59850248,41475.0,41474.0,0.26957014]
[1644066854574,0.3322,41475.0,41474.0,0.26957014]
[1644066854775,0.3322,41475.0,41474.0,0.27728272]
[1644066854974,0.04228742,41480.0,41474.0,0.27728272]
[1644066855174,0.3322,41479.0,41474.0,0.27728272]
[1644066855678,0.3322,41479.0,41477.0,0.00771258]
[1644066856123,0.04228742,41480.0,41477.0,0.00771258]
[1644066856523,0.04228742,41480.0,41478.0,0.24128257]
[1644066856824,0.04228742,41480.0,41477.0,0.00771258]
[1644066857422,0.04228742,41481.0,41477.0,0.00771258]
[1644066857621,0.04228742,41481.0,41478.0,0.26952964]
[1644066858920,0.00024777,41482.0,41478.0,0.26952964]
[1644066859121,0.04228742,41481.0,41478.0,0.26952964]
[1644066859323,0.04228742,41480.0,41478.0,0.26952964]
[1644066859681,0.151,41484.0,41479.0,0.3322]
[1644066859874,0.04228742,41480.0,41478.0,0.32979364]
[1644066860273,0.04228742,41480.0,41479.0,0.3322]
[1644066860474,0.00024777,41482.0,41479.0,0.3322]
[1644066860675,0.04228742,41480.0,41478.0,0.26952964]
[1644066860884,0.151,41484.0,41479.0,0.3322]
[1644066861074,0.04228742,41480.0,41478.0,0.26952964]
[1644066861275,0.00071235,41482.0,41479.0,0.3322]
[1644066861476,0.00071235,41482.0,41478.0,0.26952964]
[1644066861477,0.04228742,41480.0,41478.0,0.26952964]
[1644066861675,0.00071235,41482.0,41478.0,0.26952964]
[1644066861879,0.151,41484.0,41478.0,0.26952964]
[1644066862276,0.00072645,41482.0,41478.0,0.26952964]
[1644066862675,0.04228742,41480.0,41478.0,0.26952964]
[1644066863076,0.151,41484.0,41479.0,0.3322]
[1644066863278,0.04228742,41480.0,41478.0,0.26952964]
[1644066863529,0.00072645,41482.0,41478.0,0.26952964]
[1644066863924,0.04228742,41480.0,41478.0,0.26952964]
[1644066864925,0.00067836,41482.0,41478.0,0.26952964]
[1644066865530,0.151,41484.0,41480.0,0.00771258]
[1644066865531,0.051,41484.0,41480.0,0.00771258]
[1644066865728,0.051,41484.0,41483.0,0.00771258]
[1644066866133,0.051,41484.0,41483.0,0.05581258]
[1644066866530,0.051,41484.0,41483.0,0.11606658]
[1644066866728,0.051,41484.0,41483.0,0.05581258]
[1644066867577,0.05091927,41484.0,41483.0,0.05581258]
[1644066868180,0.05091927,41484.0,41483.0,0.0481]
[1644066868379,0.05091927,41484.0,41478.0,0.00771258]
[1644066868580,0.05091927,41484.0,41483.0,0.00771258]
[1644066870582,0.05091927,41484.0,41480.0,0.00771258]